bitfinex/quotes_ETHUSD_20250413
["timestamp","ask_amount","ask_price","bid_price","bid_amount"]
[1744520228832,6.22089,1607.5,1607.1,13.29587]
[1744520229035,6.77006,1607.7,1607.1,0.8513]
[1744520229257,0.55,1607.7,1607.1,7.07357]
[1744520229467,6.77011,1607.7,1607.3,6.22151]
[1744520229790,12.44133,1607.6,1607.2,6.222]
[1744520229966,6.22062,1607.6,1607.2,6.222]
[1744520230652,9.22092,1607.5,1607.1,6.24235]
[1744520231266,6.2217,1607.3,1607.1,0.02]
[1744520231784,3.0,1607.2,1607.1,0.02]
[1744520232144,9.222,1607.2,1607.1,0.02]
[1744520232347,9.772,1607.2,1607.1,0.02]
[1744520232551,17.8263,1607.2,1607.1,0.02]
[1744520234687,10.5513,1607.2,1607.1,0.02]
[1744520234871,4.3293,1607.2,1607.1,0.02]
[1744520235044,10.5513,1607.2,1607.1,0.02]
[1744520236498,11.02227819,1607.2,1607.1,0.02]
[1744520237664,6.22354,1606.8,1606.7,7.56887052]
[1744520237968,25.48902646,1606.8,1606.7,0.49961078]
[1744520238304,9.77587,1606.2,1606.1,0.02]
[1744520238463,17.05287,1606.2,1606.1,0.02]
[1744520238991,0.7793,1606.5,1606.1,0.02]
[1744520239293,0.7793,1606.5,1606.0,7.0507]
[1744520239294,9.22514,1606.4,1606.0,0.8241]
[1744520239471,9.22514,1606.4,1606.0,7.05074]
[1744520239894,9.22514,1606.4,1605.4,9.22897]
[1744520239895,7.00905,1605.2,1605.0,0.5]
[1744520240101,0.7793,1604.9,1604.2,8.19638189]
[1744520240395,0.7793,1604.9,1604.0,10.73441674]
[1744520240396,0.55,1604.5,1604.0,1.43047219]
[1744520240557,0.7793,1604.6,1604.0,1.43047219]
[1744520240764,7.564,1604.8,1604.3,6.23304]
[1744520240994,0.7793,1604.9,1604.4,0.623304]
[1744520241271,6.23073,1605.0,1604.0,7.861]
[1744520241481,6.78113,1604.9,1604.3,6.18323]
[1744520241662,6.23181,1604.7,1604.1,6.23365]
[1744520241870,6.23227,1604.6,1604.0,6.23421]
[1744520242093,3.0,1605.0,1604.3,6.23315]
[1744520242285,6.23193,1604.7,1603.7,6.23535]
[1744520242491,6.23193,1604.7,1603.6,6.23567]
[1744520242492,6.23395,1604.2,1603.6,6.23567]
[1744520242693,12.46989,1603.9,1603.5,13.77251216]
[1744520242892,6.23521,1603.8,1603.5,13.77251216]
[1744520243093,9.99159,1604.1,1603.5,13.77251216]
[1744520243293,6.23423,1604.1,1603.5,20.00871216]
[1744520243497,3.55,1604.2,1603.5,13.77251216]
[1744520243498,6.78596,1603.6,1603.5,13.77251216]
[1744520243661,7.25740483,1603.6,1603.5,4.77251216]
[1744520243965,7.25740483,1603.6,1603.3,0.3936603]
[1744520243966,6.78674,1603.4,1603.3,0.3936603]
[1744520244162,6.78674,1603.4,1602.4,0.7983]
[1744520244163,6.23799,1603.1,1602.4,0.7983]
[1744520244393,6.23799,1603.1,1602.1,0.02]
[1744520244394,6.23984,1602.7,1602.1,6.24142]
[1744520244600,0.7572,1602.8,1602.3,6.24076]
[1744520244895,0.7572,1603.2,1602.9,6.23844]
[1744520245099,0.7572,1604.2,1603.0,0.623844]
[1744520245300,0.7572,1604.2,1603.4,6.23672]
[1744520245500,6.11,1605.0,1603.4,6.23672]
[1744520245501,0.32421486,1604.8,1604.5,6.23227]
[1744520245659,2.32948646,1605.3,1604.5,6.23227]
[1744520245660,6.22936,1605.4,1604.5,3.46357]
[1744520245864,6.22918,1605.4,1604.7,6.23135]
[1744520246064,6.22918,1605.4,1604.0,14.39725]
[1744520246065,0.8274,1605.1,1604.0,14.39725]
[1744520246293,6.23199,1604.7,1604.1,6.23399]
[1744520246461,10.49248646,1605.0,1604.2,6.23338]
[1744520246660,7.06012,1604.5,1603.7,6.23527]
[1744520246893,6.23327,1604.3,1603.7,6.23527]
[1744520247198,0.623327,1604.2,1603.6,8.163]
[1744520247391,5.35938958,1604.3,1604.2,6.23334]
[1744520248118,9.58e-06,1604.3,1604.2,7.01444]
[1744520248676,1.37e-06,1604.5,1604.4,6.23285]
[1744520249611,4.02549437,1605.1,1604.7,6.23131]
[1744520249895,4.02549437,1605.1,1604.9,6.23081]
[1744520250271,4.02549437,1605.1,1605.0,6.23052]
[1744520250481,4.02549437,1605.1,1604.9,6.23081]
[1744520250811,4.02549437,1605.1,1605.0,6.23052]
[1744520251114,4.02549437,1605.1,1604.7,6.23139]
[1744520251321,4.02549437,1605.1,1604.5,0.7724]
[1744520251322,0.40254944,1605.0,1604.5,6.23222]
[1744520251471,0.40254944,1605.0,1604.5,12.4645]
[1744520251803,0.7922,1605.2,1604.8,6.2311]
[1744520251980,0.55,1605.3,1604.8,12.46222]
[1744520252183,3.02,1605.4,1604.9,6.2309]
[1744520252370,3.02,1605.4,1604.8,6.2311]
[1744520252570,3.02,1605.4,1604.9,6.23067]
[1744520252774,4.02408,1605.4,1605.0,6.23052]
[1744520253003,4.02408,1605.4,1604.8,6.23129]
[1744520253004,0.02,1605.4,1604.8,6.23129]
[1744520253304,0.02,1605.4,1604.9,6.2309]
[1744520253476,0.02,1605.4,1604.9,12.46145]
[1744520253677,0.02,1605.4,1605.0,6.23015]
[1744520254706,0.02,1605.4,1604.8,6.23094]
[1744520255000,0.40122,1605.4,1605.0,6.23025]
[1744520255216,0.40122,1605.4,1604.9,6.23091]
[1744520255398,0.40122,1605.4,1604.7,8.9364]
[1744520255580,0.40122,1605.4,1605.0,6.23025]
[1744520256721,6.63035,1605.4,1604.9,6.23091]
[1744520256925,0.663035,1605.3,1604.7,4.56633243]
[1744520257082,0.40122,1605.4,1605.0,6.23046]
[1744520257282,0.40122,1605.4,1605.0,6.23027]
[1744520257484,12.85986,1605.4,1604.9,6.23086]
[1744520257702,6.22942,1605.3,1604.8,12.46213]
[1744520258178,6.22942,1605.3,1604.8,6.23101]
[1744520258374,6.22942,1605.3,1604.8,12.46206]
[1744520258790,0.55,1604.9,1604.2,6.23332]
[1744520259028,6.2319,1604.7,1604.2,6.23332]
[1744520259203,6.2319,1604.7,1604.2,12.46669]
[1744520259409,6.23174,1604.7,1604.2,12.46676]
[1744520259608,6.23174,1604.7,1604.2,6.23332]
[1744520259929,0.7631,1604.5,1604.0,6.23414]
[1744520260221,6.99559,1604.5,1604.0,6.23414]
[1744520260425,0.7631,1604.5,1604.1,6.23387]
[1744520260621,11.788174,1604.7,1604.0,6.2343]
[1744520260829,11.788174,1604.7,1604.3,6.23309]
[1744520260979,7.4110574,1604.6,1604.1,12.46786]
[1744520261185,1.1788174,1604.6,1604.2,6.23349]
[1744520261431,1.1788174,1604.6,1604.1,6.23385]
[1744520261598,13.6432874,1604.6,1604.1,6.23385]
[1744520261801,7.4109074,1604.6,1604.1,12.46763]
[1744520262289,0.6913609,1604.5,1604.2,6.23363]
[1744520262487,0.6913609,1604.5,1604.1,6.23378]
[1744520262690,17.39684,1604.7,1604.2,6.23358]
[1744520262902,23.6288,1604.7,1604.2,6.23358]
[1744520263103,0.55,1604.4,1603.5,0.7746]
[1744520263298,6.23561,1603.7,1603.2,6.23726]
[1744520263527,6.23533,1603.8,1603.3,6.23713]
[1744520263745,6.78484,1603.9,1603.4,6.23648]
[1744520263888,3.0,1604.2,1603.8,6.23503]
[1744520264086,0.7631,1604.3,1603.8,6.23492]
[1744520264337,0.7631,1604.3,1604.0,12.46874]
[1744520264634,0.7631,1604.3,1604.0,6.23437]
[1744520264833,0.7631,1604.3,1603.9,6.23477]
[1744520265001,1.65601,1604.3,1603.9,6.23477]
[1744520265343,0.7631,1604.3,1603.7,15.17589]
[1744520265486,0.7631,1604.3,1603.8,6.23519]
[1744520265681,0.7631,1604.3,1603.9,6.23461]
[1744520265991,0.7631,1604.3,1603.9,12.46915]
[1744520266191,0.7631,1604.3,1604.0,6.23419]
[1744520266387,6.99652,1604.3,1603.8,6.23515]
[1744520266590,7.696172,1604.3,1603.8,6.23495]
[1744520266791,1.462752,1604.3,1603.8,6.23495]
[1744520267020,1.462752,1604.3,1604.0,6.23425]
[1744520267224,0.7631,1604.3,1603.9,6.2348]
[1744520267713,0.7631,1604.3,1603.9,12.46945]
[1744520267924,0.7631,1604.3,1603.9,6.23465]
[1744520268248,0.7631,1604.3,1603.9,6.23459]
[1744520268417,0.7631,1604.3,1603.9,6.23465]
[1744520268621,0.7631,1604.3,1603.9,6.08465]
[1744520269058,0.7631,1604.3,1603.7,8.9406]
[1744520269223,0.7631,1604.3,1604.0,6.23422]
[1744520269633,9.2321,1604.6,1604.0,6.23422]
[1744520269945,0.7549,1604.5,1604.0,6.23422]
[1744520270147,1.8086,1604.5,1604.1,6.23399]
[1744520270650,1.8086,1604.5,1604.2,6.2336]
[1744520270856,0.7549,1604.5,1604.3,6.23314]
[1744520271035,0.7549,1604.5,1604.1,6.23396]
[1744520271242,0.7549,1604.5,1604.2,6.23336]
[1744520271652,14.39787,1604.7,1604.2,12.46683]
[1744520271856,0.55,1604.6,1603.7,15.17588]
[1744520272151,6.78211,1604.6,1604.1,6.23401]
[1744520272361,6.23262,1604.5,1604.0,6.23434]
[1744520272509,6.7821,1604.6,1604.0,6.23426]
[1744520272715,6.7821,1604.6,1604.0,6.2342]
[1744520272957,6.91072,1604.5,1604.0,6.2342]
[1744520273250,0.67821,1604.5,1604.1,6.23384]
[1744520273453,14.39771,1604.7,1604.2,6.23349]
[1744520273666,0.55,1604.5,1604.0,6.23421]
[1744520273836,6.2324,1604.6,1603.8,6.23517]
[1744520274035,0.55,1604.6,1604.1,6.23401]
[1744520274246,0.55,1604.6,1604.1,6.23382]
[1744520274549,6.2327,1604.5,1604.0,6.23437]
[1744520274740,6.23353,1604.3,1603.8,6.23515]
[1744520274937,0.55,1604.2,1603.8,6.23515]
[1744520275141,0.55,1604.2,1603.8,6.23508]
[1744520275337,1.228329,1604.2,1603.8,12.4701]
[1744520275542,0.678329,1604.2,1603.8,6.23502]
[1744520275740,0.678329,1604.2,1603.8,12.47003]
[1744520276117,6.23417,1604.1,1603.6,6.23561]
[1744520276361,1.3228,1604.0,1603.4,6.23668]
[1744520276556,1.3228,1604.0,1603.1,7.04951]
[1744520276557,6.2358,1603.7,1603.2,6.23752]
[1744520276727,0.62358,1603.7,1603.1,0.8119]
[1744520276933,7.0073,1604.0,1603.5,6.23597]
[1744520277259,6.78481,1603.9,1603.3,12.47399]
[1744520277475,0.7728,1604.0,1603.7,6.23553]
[1744520277672,0.7728,1604.0,1603.5,6.23635]
[1744520277842,0.7728,1604.0,1603.8,6.23496]
[1744520278171,0.7728,1604.2,1603.8,12.46998]
[1744520278678,0.7728,1604.2,1603.9,6.23458]
[1744520278970,0.7728,1604.2,1604.0,6.23433]
[1744520279287,0.7728,1604.2,1603.9,6.23475]
[1744520279578,10.25838437,1604.4,1603.9,6.23475]
[1744520279579,4.02549437,1604.4,1604.2,6.23329]
[1744520279726,4.02549437,1604.4,1604.1,6.2338]
[1744520280145,4.02549437,1604.4,1604.1,12.46761]
[1744520280341,4.02549437,1604.4,1604.1,6.2338]
[1744520280595,4.02549437,1604.4,1604.3,6.23324]
[1744520281197,4.02549437,1604.4,1604.3,7.00494]
[1744520281489,4.32440866,1604.8,1604.7,6.23169]
[1744520282199,4.32440866,1604.8,1604.7,7.00339]
[1744520282510,4.32440866,1604.8,1604.6,6.23193]
[1744520282812,4.32440866,1604.8,1604.7,6.23169]
[1744520283520,4.32440866,1604.8,1604.7,7.478039]
[1744520283868,0.8326,1605.4,1605.0,6.23052]
[1744520284264,0.8326,1605.4,1604.9,6.23088]
[1744520284614,0.8326,1605.4,1604.8,13.23413]
[1744520284615,7.06192,1605.4,1604.8,13.23413]
[1744520284828,7.06192,1605.4,1604.9,6.23091]
[1744520284829,0.706192,1605.3,1604.9,6.23091]
[1744520285118,0.02,1605.4,1605.1,6.23009]
[1744520285317,0.02,1605.4,1605.0,6.23036]
[1744520285520,0.02,1605.4,1605.0,8.36]
[1744520285521,0.644867,1605.4,1605.0,8.36]
[1744520285810,6.873977,1605.4,1604.9,6.23066]
[1744520285967,0.644867,1605.4,1604.9,12.46135]
[1744520286168,0.644867,1605.4,1604.9,6.23066]
[1744520286379,3.26437506,1605.3,1604.8,14.58928]
[1744520286584,0.32643751,1605.2,1604.8,8.358]
[1744520286814,0.32643751,1605.2,1604.8,7.58721]
[1744520286975,0.32643751,1605.2,1604.8,7.58702]
[1744520287171,0.32643751,1605.2,1605.1,6.23014]
[1744520287403,3.26437506,1605.3,1605.1,6.23014]
[1744520287812,3.26437506,1605.3,1604.9,6.23068]
[1744520288015,3.26437506,1605.3,1605.0,6.23049]
[1744520288617,0.644867,1605.4,1605.0,6.23021]
[1744520288783,0.02,1605.4,1605.0,6.23021]
[1744520289180,0.02,1605.4,1604.8,7.58725]
[1744520289516,0.02,1605.4,1605.1,6.22981]
[1744520290713,0.02,1605.4,1605.2,6.2297]
[1744520291176,0.02,1605.4,1605.1,6.23012]
[1744520291373,0.02,1605.4,1605.0,6.23052]
[1744520291590,0.720029,1605.4,1605.0,12.46088]
[1744520291974,0.02,1605.4,1605.0,12.46088]
[1744520292173,0.02,1605.4,1605.1,6.2301]
[1744520293327,0.02,1605.4,1605.1,6.22996]
[1744520293526,0.02,1605.4,1604.9,6.23089]
[1744520293685,6.249,1605.4,1604.9,6.23068]
[1744520293886,0.72007,1605.4,1605.0,6.23051]
[1744520294109,0.72007,1605.4,1605.0,12.46087]
[1744520294309,0.72007,1605.4,1605.0,6.23036]
[1744520294526,6.2491,1605.4,1604.9,6.23091]
[1744520294723,6.2491,1605.4,1604.9,12.4616]
[1744520295032,6.2491,1605.4,1604.8,6.99557]
[1744520295033,6.22955,1605.3,1604.8,6.99557]
[1744520295330,0.7517,1604.9,1604.3,8.357]
[1744520295523,0.7517,1604.9,1604.5,6.23224]
[1744520295729,0.7517,1604.9,1604.6,6.23206]
[1744520295931,6.77976,1605.2,1604.4,6.23279]
[1744520295932,0.7517,1605.2,1604.4,6.23279]
[1744520296090,0.7517,1605.2,1604.9,6.23073]
[1744520296283,0.7517,1605.2,1604.7,6.23166]
[1744520296522,0.7517,1605.2,1605.0,6.23038]
[1744520296703,9.1376,1605.4,1605.1,6.22975]
[1744520297026,9.1376,1605.4,1605.0,6.23031]
[1744520297231,9.1376,1605.4,1605.0,6.2303]
[1744520297433,0.7806,1605.4,1605.2,6.22962]
[1744520297643,0.7806,1605.4,1605.2,6.22958]
[1744520297849,0.7806,1605.4,1605.3,6.22936]
[1744520298020,0.7806,1605.4,1605.2,6.22954]
[1744520298350,0.7806,1605.4,1605.1,6.23012]
[1744520298653,1.48152,1605.4,1605.2,6.22971]
[1744520298832,0.02,1605.4,1605.3,6.22936]
[1744520299449,0.02,1605.4,1605.3,15.34616]
[1744520299751,0.7606,1606.0,1605.8,6.22726]
[1744520299902,0.7606,1606.0,1605.9,6.22703]
[1744520300108,8.593554,1606.3,1605.9,6.22703]
[1744520300304,0.8593554,1606.2,1605.9,6.22703]
[1744520300608,8.593554,1606.3,1605.9,6.98758]
[1744520300609,7.832954,1606.3,1605.9,6.98758]
[1744520300911,7.832954,1606.3,1606.1,6.22623]
[1744520301926,7.832954,1606.3,1606.2,6.22587]
[1744520302712,0.02,1606.4,1606.2,6.22587]
[1744520302948,0.02,1606.4,1606.3,7.03158]
[1744520304547,0.02,1606.4,1606.3,0.8061]
[1744520304870,0.02,1606.4,1606.3,7.03158]
[1744520305074,0.02,1606.4,1606.2,6.22563]
[1744520305272,0.02,1606.4,1606.3,6.22548]
[1744520307043,0.1167365,1606.4,1606.3,6.22548]
[1744520308078,0.1167365,1606.4,1606.1,6.22622]
[1744520308265,0.1167365,1606.4,1606.0,6.2265]
[1744520308465,0.75090615,1606.4,1606.0,12.45294]
[1744520308636,0.75090615,1606.4,1606.0,6.22644]
[1744520308839,0.8299,1605.9,1605.5,6.22845]
[1744520309067,0.8299,1605.9,1605.4,0.8061]
[1744520309382,0.8299,1606.2,1605.7,6.22768]
[1744520309579,0.75090615,1606.4,1606.1,6.22626]
[1744520309763,6.22573,1606.3,1605.8,6.22719]
[1744520309944,6.98265,1606.1,1605.6,14.41697]
[1744520310142,0.7561,1606.1,1605.7,6.22753]
[1744520310679,6.9824,1606.1,1605.7,12.4552]
[1744520310879,0.69824,1606.0,1605.7,6.22753]
[1744520311036,0.8528365,1606.1,1605.7,6.22753]
[1744520311237,7.0791065,1606.1,1605.7,6.22753]
[1744520311890,0.8528365,1606.1,1605.7,12.45512]
[1744520312188,0.8528365,1606.1,1605.8,6.22741]
[1744520313495,0.8528365,1606.1,1605.8,6.22721]
[1744520313693,0.8528365,1606.1,1605.9,6.22694]
[1744520313855,0.8528365,1606.1,1605.9,6.22701]
[1744520314058,0.0967365,1606.1,1605.9,6.2268]
[1744520314802,0.0967365,1606.1,1605.9,12.45368]
[1744520314963,0.0967365,1606.1,1605.9,6.2268]
[1744520315303,0.0967365,1606.1,1605.8,6.22725]
[1744520315806,0.72899915,1606.1,1605.8,6.22725]
[1744520316007,0.72899915,1606.1,1605.6,20.64515]
[1744520316203,0.0967365,1606.1,1605.7,6.22778]
[1744520316500,0.0967365,1606.1,1605.8,6.22728]
[1744520317254,6.3229965,1606.1,1605.7,6.22778]
[1744520317498,12.5495365,1606.1,1605.7,6.22778]
[1744520317699,6.3229965,1606.1,1605.7,12.45546]
[1744520317894,0.63229965,1606.0,1605.7,6.22768]
[1744520318253,6.85897965,1606.0,1605.6,14.41714]
[1744520318679,7.04569,1605.9,1605.4,6.22885]
[1744520318863,0.8185,1605.9,1605.6,6.228]
[1744520319077,0.9152365,1605.9,1605.6,6.228]
[1744520319379,0.9152365,1605.9,1605.6,12.45599]
[1744520319580,0.9152365,1605.9,1605.6,6.22799]
[1744520319787,0.9152365,1605.9,1605.7,6.22765]
[1744520319986,0.0967365,1605.9,1605.8,6.22742]
[1744520320966,0.0967365,1605.9,1605.7,6.22765]
[1744520321513,0.0967365,1605.9,1605.8,14.41642]
[1744520321804,0.0967365,1605.9,1605.8,15.19652]
[1744520322008,0.02,1606.4,1606.2,6.2256]
[1744520323906,0.02,1606.4,1606.3,6.22548]
[1744520324669,0.02,1606.4,1606.3,7.00558]
[1744520326583,0.02,1606.4,1606.3,8.328698]
[1744520326905,0.02,1606.4,1606.3,16.516698]
[1744520327112,0.55,1606.7,1606.6,6.22432]
[1744520327498,0.55,1606.7,1606.6,6.98132]
[1744520327699,7.4e-06,1606.9,1606.8,6.22354]
[1744520327913,0.02,1607.4,1606.8,6.22354]
[1744520327914,0.02,1607.4,1607.2,6.22195]
[1744520328084,0.02,1607.4,1607.1,6.22235]
[1744520328585,0.02,1607.4,1607.1,12.44451]
[1744520329090,0.02,1607.4,1607.1,6.22216]
[1744520330395,0.02,1607.4,1607.0,6.22274]
[1744520330595,0.02,1607.4,1607.1,6.22223]
[1744520330893,0.02,1607.4,1607.1,6.22216]
[1744520331217,0.02,1607.4,1607.1,12.44432]
[1744520331384,0.02,1607.4,1607.1,6.22216]
[1744520331711,0.02,1607.4,1607.0,12.44532]
[1744520331916,0.644099,1607.4,1607.0,12.44532]
[1744520332113,0.644099,1607.4,1607.1,6.22238]
[1744520332294,0.644099,1607.4,1606.8,16.413251]
[1744520332295,0.02,1607.4,1607.2,6.22173]
[1744520332811,0.02,1607.4,1607.2,12.4435]
[1744520333115,0.02,1607.4,1607.3,6.22161]
[1744520334087,0.02,1607.4,1607.3,15.21111]
[1744520334283,0.02,1607.4,1607.3,17.354394]
[1744520334883,0.02,1607.4,1607.1,6.22234]
[1744520335155,0.819,1607.4,1607.2,6.22178]
[1744520335419,0.02,1607.4,1607.2,6.22178]
[1744520336387,0.02,1607.4,1607.1,6.22237]
[1744520336588,6.22182,1607.3,1606.9,6.22305]
[1744520337119,6.24134,1607.4,1607.0,6.22261]
[1744520337331,0.624134,1607.3,1606.9,12.44586]
[1744520338226,6.845744,1607.3,1606.9,12.44586]
[1744520338412,6.845744,1607.3,1607.0,6.22275]
[1744520338894,0.624134,1607.3,1607.0,6.22275]
[1744520339096,0.624134,1607.3,1606.8,8.184]
[1744520339097,0.02,1607.4,1607.2,6.22198]
[1744520339308,0.02,1607.4,1607.3,6.22161]
[1744520339709,0.02,1607.4,1607.2,6.22198]
[1744520340318,0.02,1607.4,1607.1,6.22232]
[1744520340618,0.02,1607.4,1607.1,6.22215]
[1744520340819,0.02,1607.4,1607.2,6.22195]
[1744520341024,0.02,1607.4,1607.3,6.22161]
[1744520342140,0.02,1607.4,1606.9,7.02753]
[1744520342423,6.22179,1607.3,1606.9,6.22295]
[1744520342624,6.24126,1607.4,1607.0,6.22274]
[1744520342792,6.24126,1607.4,1607.0,6.22257]
[1744520342793,0.02,1607.4,1607.0,6.22257]
[1744520342993,0.02,1607.4,1607.1,6.22224]
[1744520343201,0.02,1607.4,1607.1,12.44444]
[1744520343427,0.02,1607.4,1607.2,6.22179]
[1744520343732,0.02,1607.4,1607.3,6.22161]
[1744520345037,0.02,1607.4,1607.2,6.22179]
[1744520345340,0.02,1607.4,1607.2,12.4436]
[1744520345638,0.02,1607.4,1607.2,6.22179]
[1744520346210,6.24129,1607.4,1607.0,18.51521]
[1744520346414,0.8321,1607.3,1607.0,12.29259]
[1744520346836,7.05376,1607.3,1607.0,6.07]
[1744520347045,6.22218,1607.2,1606.8,12.4469]
[1744520347406,6.22218,1607.2,1606.7,14.1588]
[1744520347636,6.22251,1607.1,1606.7,14.15872]
[1744520348422,6.22251,1607.1,1606.7,7.935]
[1744520348629,6.22296,1607.0,1606.7,7.935]
[1744520349144,0.8321,1606.9,1606.7,7.935]
[1744520350439,0.8321,1606.9,1606.7,14.15884]
[1744520350644,0.02,1607.4,1607.3,6.22161]
[1744520358624,0.02,1607.4,1607.2,12.4436]
[1744520358822,0.02,1607.4,1607.0,0.8135]
[1744520359013,0.02,1607.4,1606.9,6.22312]
[1744520359014,6.22189,1607.3,1606.9,6.22312]
[1744520359345,6.2225,1607.1,1606.7,6.22378]
[1744520359945,3.8323,1607.2,1606.9,6.22308]
[1744520360743,0.8323,1607.2,1606.8,6.22354]
[1744520360947,0.8323,1607.2,1607.0,6.22259]
[1744520361357,0.8323,1607.2,1606.9,6.22316]
[1744520361748,7.05431,1607.2,1606.8,12.44688]
[1744520361947,7.05431,1607.2,1606.8,6.22338]
[1744520361948,13.27658,1607.2,1606.8,6.22338]
[1744520362155,7.05431,1607.2,1606.8,6.22338]
[1744520362350,7.05431,1607.2,1606.8,12.44674]
[1744520362518,7.05431,1607.2,1606.8,6.22336]
[1744520363240,8.2171483,1607.2,1606.8,6.22336]
[1744520363837,6.2229,1607.0,1606.6,12.44839]
[1744520365118,6.2229,1607.0,1606.7,6.22392]
[1744520365325,6.22243,1607.1,1606.7,6.22392]
[1744520365617,6.22243,1607.1,1606.8,6.22352]
[1744520367254,8.2171683,1607.2,1606.8,12.44689]
[1744520367457,7.05433,1607.2,1606.8,12.4467]
[1744520367822,7.05433,1607.2,1606.8,6.22333]
[1744520369552,0.8323,1607.2,1606.8,6.22333]
[1744520369752,3.8323,1607.2,1606.9,6.223]
[1744520370053,10.05433,1607.2,1606.8,6.22333]
[1744520370257,6.22239,1607.1,1606.8,6.22333]
[1744520370624,16.27666,1607.2,1606.8,6.22333]
[1744520371461,0.02,1607.4,1607.0,6.22277]
[1744520371638,0.02,1607.4,1607.2,6.22172]
[1744520371833,0.02,1607.4,1607.2,12.44357]
[1744520372041,0.02,1607.4,1607.3,6.22161]
[1744520372546,0.02,1607.4,1607.3,7.03861]
[1744520372862,0.02,1607.4,1607.3,8.986826]
[1744520373640,0.02,1607.4,1607.3,8.169826]
[1744520375363,0.02,1607.4,1607.3,1.948216]
[1744520375569,0.02,1607.4,1607.2,6.222]
[1744520375735,0.02,1607.4,1607.1,0.817]
[1744520375937,0.02,1607.4,1607.3,6.22161]
[1744520378474,0.02,1607.4,1607.3,12.29161]
[1744520379174,0.02,1607.4,1607.3,6.07]
[1744520379650,6.22164,1607.3,1606.9,20.275]
[1744520379833,6.22164,1607.3,1607.0,1.41134159]
[1744520380972,0.02,1607.4,1607.0,1.41134159]
[1744520381175,0.02,1607.4,1607.2,6.22177]
[1744520381861,0.02,1607.4,1607.1,6.22238]
[1744520382639,0.02,1607.4,1607.1,12.44462]
[1744520382838,0.02,1607.4,1607.3,6.22161]
[1744520384378,0.02,1607.4,1607.2,12.4435]
[1744520384577,0.02,1607.4,1607.3,6.22161]
[1744520384980,0.02,1607.4,1607.2,6.22175]
[1744520385738,0.02,1607.4,1607.2,12.44353]
[1744520385957,0.02,1607.4,1607.3,7.465963]
[1744520388552,0.02,1607.4,1607.3,15.292963]
[1744520389993,0.02,1607.4,1607.3,21.362963]
[1744520390877,0.7735,1608.2,1607.9,6.21913]
[1744520391084,0.7735,1608.2,1607.9,6.21909]
[1744520391267,3.7735,1608.2,1607.9,6.21909]
[1744520391593,3.7735,1608.2,1607.9,12.43819]
[1744520391796,0.7735,1608.2,1608.0,6.21882]
[1744520391994,6.99178,1608.2,1607.8,6.21966]
[1744520392196,0.7735,1608.2,1607.9,6.21891]
[1744520392370,0.7735,1608.2,1608.0,6.21874]
[1744520392916,7.827,1608.3,1608.1,6.21832]
[1744520393222,7.827,1608.3,1608.0,6.21874]
[1744520394123,0.7935,1608.4,1608.1,6.21826]
[1744520394411,6.21787,1608.3,1607.9,12.2892]
[1744520394584,6.21858,1608.1,1607.7,14.04586]
[1744520394905,6.21818,1608.2,1607.8,12.43902]
[1744520395108,6.99168,1608.2,1607.8,12.43902]
[1744520395312,0.02,1608.4,1608.1,6.21834]
[1744520397192,6.23737,1608.4,1608.1,6.21834]
[1744520397410,6.23737,1608.4,1608.0,6.21874]
[1744520398224,6.23737,1608.4,1608.0,12.43742]
[1744520398519,6.21797,1608.3,1607.9,6.21916]
[1744520398831,7.463508,1608.3,1607.9,6.21916]
[1744520399717,6.21817,1608.2,1607.9,6.21916]
[1744520399924,6.21797,1608.3,1607.9,6.21913]
[1744520400424,0.7729,1608.2,1607.9,6.21913]
[1744520400812,6.21852,1608.1,1607.7,7.826]
[1744520401120,6.21923,1608.0,1607.6,6.22039]
[1744520401695,6.21857,1608.1,1607.5,6.07]
[1744520402029,0.7729,1608.2,1607.8,6.21967]
[1744520402193,0.7729,1608.2,1607.9,6.21913]
[1744520402395,0.7729,1608.2,1607.9,6.21908]
[1744520402595,0.7729,1608.2,1608.0,6.21853]
[1744520402820,3.0,1608.3,1608.0,6.21853]
[1744520403033,9.21791,1608.3,1607.9,6.21924]
[1744520403234,9.21791,1608.3,1607.9,12.43838]
[1744520403533,7.01111,1608.4,1608.0,6.21883]
[1744520403728,0.7937,1608.4,1608.1,6.21837]
[1744520404305,0.7937,1608.4,1608.1,12.43675]
[1744520404498,0.02,1608.4,1608.0,6.96885]
[1744520404832,0.02,1608.4,1608.2,6.21807]
[1744520405130,6.23749,1608.4,1608.1,0.696885]
[1744520405556,0.02,1608.4,1608.1,6.915055]
[1744520405958,0.02,1608.4,1608.2,6.21803]
[1744520406749,6.23743,1608.4,1608.0,6.9687]
[1744520406945,6.218,1608.3,1607.9,6.21911]
[1744520407147,7.0072,1608.3,1607.9,6.21911]
[1744520407473,7.0072,1608.3,1608.0,6.21889]
[1744520407962,6.21817,1608.2,1607.9,6.21911]
[1744520408329,7.0072,1608.3,1607.9,6.21911]
[1744520408865,7.00716,1608.3,1607.9,6.21911]
[1744520409053,7.00716,1608.3,1607.9,8.069985]
[1744520409357,7.00716,1608.3,1607.8,12.28964]
[1744520409547,6.21866,1608.1,1607.7,20.06292]
[1744520409862,6.21819,1608.2,1607.8,12.43898]
[1744520410064,12.43657,1608.2,1607.8,6.21949]
[1744520410965,6.21853,1608.1,1607.8,6.21949]